[Event "EWIRCC 2019"]
[Site "Monte-Carlo"]
[Date "2019.11.30"]
[Round "3.1"]
[White "Worek, Joanna"]
[Black "Kosteniuk, Alexandra"]
[Result "1-0"]
[ECO "B45"]
[WhiteElo "2316"]
[BlackElo "2483"]
[Annotator "ChessBase"]
[PlyCount "99"]
[EventDate "2019.11.28"]
[EventType "swiss"]
[EventCountry "MNC"]
[SourceTitle "playchess.com"]
[Source "ChessBase"]
[SourceQuality "1"]
[TimeControl "5400+30"]

1. e4 {[%emt 1:15:11]} c5 {[%emt 1:15:11]} 2. Nf3 {[%emt 0:00:22]} e6 {[%emt 0:00:21]} 3. d4 {[%emt 0:00:22]} cxd4 {[%emt 0:00:21]} 4. Nxd4 {[%emt 0:00:21]} Nf6 {[%emt 0:00:21]} 5. Nc3 {[%emt 0:00:22]} Nc6 {[%emt 0:00:21]} 6. Nxc6 {[%emt 0:01:56]} bxc6 {[%emt 0:00:22]} 7. e5 {[%emt 0:03:25]} Nd5 {[%emt 0:00:22]} 8. Nxd5 {[%emt 0:00:26]} cxd5 {[%emt 0:00:38]} 9. Bd3 {[%emt 0:00:44]} Qc7 {[%emt 0:00:39]} 10. Qe2 {[%emt 0:00:28]} Bb4+ {[%emt 0:00:35]} 11. Kf1 {[%emt 0:00:49]} a5 {[%emt 0:03:03]} 12. h4 {[%emt 0:00:37]} O-O {[%emt 0:03:09]} 13. Rh3 {[%emt 0:02:48]} f6 {[%emt 0:00:34]} 14. exf6 {[%emt 0:04:11]} Rxf6 {[%emt 0:00:22]} 15. Kg1 {[%emt 0:00:24]} Bb7 {[%emt 0:02:38]} 16. Bg5 {[%emt 0:02:09]} Rf7 {[%emt 0:00:23]} 17. Rf3 {[%emt 0:00:28]} Rxf3 {[%emt 0:01:46]} 18. Qxf3 {[%emt 0:00:22]} Qe5 {[%emt 0:00:34]} 19. c3 {[%emt 0:01:33]} Bd6 {[%emt 0:00:26]} 20. g3 {[%emt 0:00:22]} Rf8 {[%emt 0:01:20]} 21. Qe3 {[%emt 0:00:21]} Qxe3 {[%emt 0:01:30]} 22. Bxe3 {[%emt 0:00:21]} a4 {[%emt 0:00:21]} 23. b4 {[%emt 0:00:54]} axb3 {[%emt 0:01:12]} 24. axb3 {[%emt 0:00:22]} Be5 {[%emt 0:00:37]} 25. Ra7 {[%emt 0:00:37]} Bc6 {[%emt 0:00:54]} 26. b4 {[%emt 0:01:01]} Rb8 {[%emt 0:00:21]} 27. Bd2 {[%emt 0:00:25]} Bd6 {[%emt 0:00:42]} 28. Be3 {[%emt 0:00:24]} Be5 {[%emt 0:00:25]} 29. Bd2 {[%emt 0:00:21]} g6 {[%emt 0:00:44]} 30. f4 {[%emt 0:01:34]} Bf6 {[%emt 0:00:21]} 31. Kf2 {[%emt 0:00:23]} Kf7 {[%emt 0:00:32]} 32. Ke2 {[%emt 0:00:37]} e5 {[%emt 0:01:43]} 33. fxe5 {[%emt 0:00:30]} Bxe5 {[%emt 0:00:21]} 34. g4 {[%emt 0:00:21]} h5 {[%emt 0:01:24]} 35. gxh5 {[%emt 0:00:31]} gxh5 {[%emt 0:00:21]} 36. Kd1 {[%emt 0:00:38]} Bg3 {[%emt 0:01:02]} 37. Bg5 {[%emt 0:00:26]} d4 {[%emt 0:00:32]} 38. b5 {[%emt 0:00:41]} Bf3+ {[%emt 0:00:38]} 39. Kc2 {[%emt 0:00:21]} Ke6 {[%emt 0:00:38]} 40. cxd4 {[%emt 0:00:53]} Bf2 {[%emt 0:00:29]} 41. Ra6+ {[%emt 0:00:29]} Kd5 {[%emt 0:00:29]} 42. Rf6 {[%emt 0:00:26]} Rc8+ {[%emt 0:01:16]} 43. Kd2 {[%emt 0:00:23]} Bxd4 {[%emt 0:00:32]} 44. Rxf3 {[%emt 0:00:22]} Bc3+ {[%emt 0:00:23]} 45. Ke2 {[%emt 0:00:23]} Ra8 {[%emt 0:00:54]} 46. Rf5+ {[%emt 0:00:33]} Ke6 {[%emt 0:00:25]} 47. Rc5 {[%emt 0:00:48]} Bd4 {[%emt 0:00:27]} 48. Bc4+ {[%emt 0:00:32]} d5 {[%emt 0:00:21]} 49. Bxd5+ {[%emt 0:00:23]} Kd6 {[%emt 0:00:21]} 50. Bxa8 {[%emt 0:01:40] Kd5} 1-0

[Event "EWIRCC 2019"]
[Site "Monte-Carlo"]
[Date "2019.11.30"]
[Round "3.2"]
[White "Muzychuk, Mariya"]
[Black "Gaponenko, Inna"]
[Result "1/2-1/2"]
[ECO "B07"]
[WhiteElo "2552"]
[BlackElo "2427"]
[Annotator "ChessBase"]
[PlyCount "111"]
[EventDate "2019.11.28"]
[EventType "swiss"]
[EventCountry "MNC"]
[SourceTitle "playchess.com"]
[Source "ChessBase"]
[SourceQuality "1"]
[TimeControl "5400+30"]

1. e4 {[%emt 1:15:12]} d6 {[%emt 1:15:11]} 2. d4 {[%emt 0:00:22]} Nf6 {[%emt 0:00:21]} 3. Nc3 {[%emt 0:00:20]} g6 {[%emt 0:00:21]} 4. Bg5 {[%emt 0:00:51]} h6 {[%emt 0:00:50]} 5. Bf4 {[%emt 0:01:02]} c6 {[%emt 0:03:06]} 6. Qd2 {[%emt 0:00:43]} g5 {[%emt 0:01:19]} 7. Bg3 {[%emt 0:00:37]} Nh5 {[%emt 0:00:27]} 8. Nge2 {[%emt 0:00:38]} Nd7 {[%emt 0:01:30]} 9. h4 {[%emt 0:01:01]} Nxg3 {[%emt 0:03:40]} 10. Nxg3 {[%emt 0:00:21]} gxh4 {[%emt 0:00:21]} 11. Rxh4 {[%emt 0:01:10]} e5 {[%emt 0:00:22]} 12. Rh1 {[%emt 0:01:29]} exd4 {[%emt 0:00:55]} 13. Qxd4 {[%emt 0:00:25]} Rg8 {[%emt 0:03:16]} 14. Nf5 {[%emt 0:01:06]} Qb6 {[%emt 0:00:21]} 15. O-O-O {[%emt 0:00:42]} Qxd4 {[%emt 0:00:22]} 16. Rxd4 {[%emt 0:00:26]} Rg6 {[%emt 0:00:20]} 17. g3 {[%emt 0:02:52]} Ne5 {[%emt 0:01:14]} 18. Be2 {[%emt 0:00:47]} Bxf5 {[%emt 0:01:28]} 19. exf5 {[%emt 0:00:25]} Rg8 {[%emt 0:00:21]} 20. Ne4 {[%emt 0:02:14]} O-O-O {[%emt 0:00:23]} 21. Nf6 {[%emt 0:01:06]} Rh8 {[%emt 0:00:21]} 22. c4 {[%emt 0:01:51]} Kc7 {[%emt 0:02:44]} 23. Rhd1 {[%emt 0:02:10]} Be7 {[%emt 0:00:25]} 24. Ne4 {[%emt 0:00:37]} f6 {[%emt 0:00:32]} 25. b3 {[%emt 0:00:28]} Rhg8 {[%emt 0:01:50]} 26. Nc3 {[%emt 0:01:45]} a6 {[%emt 0:00:26]} 27. a4 {[%emt 0:00:25]} Rg7 {[%emt 0:00:29]} 28. Rh4 {[%emt 0:01:05]} Rh8 {[%emt 0:00:33]} 29. Kc2 {[%emt 0:00:26]} Nd7 {[%emt 0:00:28]} 30. Rdh1 {[%emt 0:00:36]} Rgh7 {[%emt 0:00:37]} 31. Bh5 {[%emt 0:00:28]} Bf8 {[%emt 0:00:21]} 32. Re4 {[%emt 0:00:49]} Re7 {[%emt 0:00:22]} 33. Rxe7 {[%emt 0:00:46]} Bxe7 {[%emt 0:00:22]} 34. Re1 {[%emt 0:00:21]} Kd8 {[%emt 0:00:27]} 35. Ne2 {[%emt 0:00:24]} d5 {[%emt 0:00:58]} 36. cxd5 {[%emt 0:00:33]} cxd5 {[%emt 0:00:21]} 37. Nf4 {[%emt 0:00:21]} Bc5 {[%emt 0:00:26]} 38. Nxd5 {[%emt 0:01:22]} Bxf2 {[%emt 0:00:22]} 39. Rd1 {[%emt 0:00:23]} Kc8 {[%emt 0:00:33]} 40. g4 {[%emt 0:00:32]} Rd8 {[%emt 0:00:27]} 41. Bf7 {[%emt 0:00:26]} Ne5 {[%emt 0:00:47]} 42. Be6+ {[%emt 0:00:27]} Kb8 {[%emt 0:00:21]} 43. Nxf6 {[%emt 0:00:41]} Rxd1 {[%emt 0:00:22]} 44. Kxd1 {[%emt 0:00:21]} Bh4 {[%emt 0:00:21]} 45. Nd7+ {[%emt 0:00:56]} Nxd7 {[%emt 0:00:21]} 46. Bxd7 {[%emt 0:00:20]} Kc7 {[%emt 0:00:22]} 47. Be6 {[%emt 0:00:21]} a5 {[%emt 0:00:26]} 48. Ke2 {[%emt 0:00:24]} Kd6 {[%emt 0:00:24]} 49. Kd3 {[%emt 0:00:21]} Ke5 {[%emt 0:00:30]} 50. Kc4 {[%emt 0:00:24]} b6 {[%emt 0:00:36]} 51. Kb5 {[%emt 0:00:27]} Bf2 {[%emt 0:00:21]} 52. Kc6 {[%emt 0:00:21]} Be3 {[%emt 0:00:28]} 53. Kd7 {[%emt 0:00:25]} Kf6 {[%emt 0:00:23]} 54. Ke8 {[%emt 0:00:23]} Bc5 {[%emt 0:00:21]} 55. Bc8 {[%emt 0:00:25]} Bb4 {[%emt 0:00:26]} 56. Kd7 {[%emt 0:00:28]} 1/2-1/2

[Event "EWIRCC 2019"]
[Site "Monte-Carlo"]
[Date "2019.11.30"]
[Round "3.3"]
[White "Stefanova, Antoaneta"]
[Black "Zhukova, Natalia"]
[Result "0-1"]
[ECO "D05"]
[WhiteElo "2481"]
[BlackElo "2323"]
[Annotator "ChessBase"]
[PlyCount "90"]
[EventDate "2019.11.28"]
[EventType "swiss"]
[EventCountry "MNC"]
[SourceTitle "playchess.com"]
[Source "ChessBase"]
[SourceQuality "1"]
[TimeControl "5400+30"]

1. d4 {[%emt 1:15:11]} Nf6 {[%emt 1:15:14]} 2. Nf3 {[%emt 0:00:23]} d5 {[%emt 0:00:27]} 3. e3 {[%emt 0:01:16]} c5 {[%emt 0:00:37]} 4. c3 {[%emt 0:00:58]} e6 {[%emt 0:00:31]} 5. Nbd2 {[%emt 0:00:52]} Bd6 {[%emt 0:00:28]} 6. Ne5 {[%emt 0:00:45]} O-O {[%emt 0:02:04]} 7. Bd3 {[%emt 0:00:31]} Qc7 {[%emt 0:01:10]} 8. f4 {[%emt 0:00:25]} b6 {[%emt 0:00:22]} 9. O-O {[%emt 0:01:59]} Ba6 {[%emt 0:00:26]} 10. Bxa6 {[%emt 0:00:32]} Nxa6 {[%emt 0:00:21]} 11. Rf3 {[%emt 0:00:26]} Ne4 {[%emt 0:04:48]} 12. Nxe4 {[%emt 0:05:18]} dxe4 {[%emt 0:00:22]} 13. Rh3 {[%emt 0:00:21]} Bxe5 {[%emt 0:07:38]} 14. Qh5 {[%emt 0:02:01]} h6 {[%emt 0:00:22]} 15. fxe5 {[%emt 0:00:21]} f5 {[%emt 0:01:25]} 16. Qg6 {[%emt 0:01:33]} Qf7 {[%emt 0:00:22]} 17. Rxh6 {[%emt 0:00:22]} Qxg6 {[%emt 0:00:22]} 18. Rxg6 {[%emt 0:00:21]} Kf7 {[%emt 0:00:31]} 19. Rg5 {[%emt 0:00:47]} Nc7 {[%emt 0:00:33]} 20. Bd2 {[%emt 0:00:39]} Rh8 {[%emt 0:00:26]} 21. c4 {[%emt 0:01:09]} Rad8 {[%emt 0:01:33]} 22. Bc3 {[%emt 0:01:34]} Rh6 {[%emt 0:00:30]} 23. a4 {[%emt 0:00:31]} Rg6 {[%emt 0:00:29]} 24. Rxg6 {[%emt 0:00:33]} Kxg6 {[%emt 0:00:21]} 25. a5 {[%emt 0:00:26]} b5 {[%emt 0:00:36]} 26. dxc5 {[%emt 0:00:21]} bxc4 {[%emt 0:00:25]} 27. Ra4 {[%emt 0:00:27]} Nd5 {[%emt 0:00:38]} 28. Bd4 {[%emt 0:00:28]} f4 {[%emt 0:00:23]} 29. Kf2 {[%emt 0:00:34]} fxe3+ {[%emt 0:00:26]} 30. Bxe3 {[%emt 0:00:21]} Rf8+ {[%emt 0:00:24]} 31. Ke2 {[%emt 0:00:22]} c3 {[%emt 0:00:21]} 32. Bd4 {[%emt 0:01:10]} cxb2 {[%emt 0:01:13]} 33. Bxb2 {[%emt 0:00:23]} e3 {[%emt 0:00:21]} 34. Bd4 {[%emt 0:01:09]} Rf2+ {[%emt 0:00:22]} 35. Ke1 {[%emt 0:00:25]} Rxg2 {[%emt 0:00:24]} 36. Rc4 {[%emt 0:00:59]} Kf5 {[%emt 0:00:36]} 37. c6 {[%emt 0:00:34]} Ke4 {[%emt 0:00:21]} 38. Bxa7+ {[%emt 0:00:56]} Kf3 {[%emt 0:00:24]} 39. Bxe3 {[%emt 0:00:29]} Re2+ {[%emt 0:00:27]} 40. Kd1 {[%emt 0:00:27]} Nxe3+ {[%emt 0:00:21]} 41. Kc1 {[%emt 0:00:21]} Nxc4 {[%emt 0:01:14]} 42. c7 {[%emt 0:00:22]} Re1+ {[%emt 0:00:21]} 43. Kc2 {[%emt 0:00:21]} Ne3+ {[%emt 0:00:28]} 44. Kb2 {[%emt 0:00:41]} Re2+ {[%emt 0:00:23]} 45. Kb3 {[%emt 0:00:28]} Rc2 {[%emt 0:00:21]} 0-1

[Event "EWIRCC 2019"]
[Site "Monte-Carlo"]
[Date "2019.11.30"]
[Round "3.4"]
[White "Bulmaga, Irina"]
[Black "Berend, Elvira"]
[Result "1-0"]
[ECO "C67"]
[WhiteElo "2435"]
[BlackElo "2349"]
[Annotator "NA"]
[PlyCount "132"]
[EventDate "2019.11.28"]
[EventType "swiss"]
[EventCountry "MNC"]
[SourceTitle "playchess.com"]
[Source "ChessBase"]
[SourceQuality "1"]
[TimeControl "5400+30"]

1. e4 {[%emt 1:15:12]} e5 {[%emt 1:15:12]} 2. Nf3 {[%emt 0:00:22]} Nc6 {[%emt 0:00:22]} 3. Bb5 {[%emt 0:00:23]} Nf6 {[%emt 0:00:22]} 4. O-O {[%emt 0:00:24]} Nxe4 {[%emt 0:00:22]} 5. d4 {[%emt 0:00:24]} Nd6 {[%emt 0:00:21]} 6. dxe5 {[%emt 0:00:22]} Nxb5 {[%emt 0:00:32]} 7. a4 {[%emt 0:00:22]} Nbd4 {[%emt 0:01:10]} 8. Nxd4 {[%emt 0:00:23]} Nxd4 {[%emt 0:00:32]} 9. Qxd4 {[%emt 0:00:22]} d5 {[%emt 0:00:31]} 10. c4 {[%emt 0:00:23]} Be6 {[%emt 0:02:27]} 11. c5 {[%emt 0:00:22]} c6 {[%emt 0:01:06]} 12. Nd2 {[%emt 0:00:45]} Be7 {[%emt 0:00:41]} 13. b4 {[%emt 0:02:00]} O-O {[%emt 0:00:33]} 14. f4 {[%emt 0:01:19]} Qd7 {[%emt 0:00:57]} 15. Bb2 {[%emt 0:00:48]} f5 {[%emt 0:00:44]} 16. a5 {[%emt 0:00:37]} a6 {[%emt 0:01:39]} 17. Nf3 {[%emt 0:00:27]} h6 {[%emt 0:00:36]} 18. Qe3 {[%emt 0:00:51]} Kh8 {[%emt 0:00:28]} 19. Nd4 {[%emt 0:00:25]} Rf7 {[%emt 0:00:47]} 20. g4 {[%emt 0:00:40]} g6 {[%emt 0:01:13]} 21. Kh1 {[%emt 0:00:32]} Rg8 {[%emt 0:00:21]} 22. gxf5 {[%emt 0:00:59]} gxf5 {[%emt 0:00:26]} 23. Qh3 {[%emt 0:00:42]} Kh7 {[%emt 0:00:43]} 24. Rg1 {[%emt 0:00:35]} Rfg7 {[%emt 0:00:23]} 25. Rxg7+ {[%emt 0:00:43]} Rxg7 {[%emt 0:00:21]} 26. Rg1 {[%emt 0:00:23]} Bf8 {[%emt 0:01:16]} 27. Rxg7+ {[%emt 0:00:37]} Kxg7 {[%emt 0:01:52]} 28. Bc3 {[%emt 0:00:55]} Qf7 {[%emt 0:00:36]} 29. Be1 {[%emt 0:00:50]} Kg6 {[%emt 0:01:23]} 30. Bh4 {[%emt 0:00:44]} Bg7 {[%emt 0:00:45]} 31. Bd8 {[%emt 0:00:49]} Kh7 {[%emt 0:00:41]} 32. Qh4 {[%emt 0:00:37]} Kg8 {[%emt 0:00:33]} 33. Kg2 {[%emt 0:01:46]} Bd7 {[%emt 0:01:45]} 34. Kf2 {[%emt 0:01:46]} Kf8 {[%emt 0:02:05]} 35. Bc7 {[%emt 0:00:33]} Kg8 {[%emt 0:00:27]} 36. Bd6 {[%emt 0:00:40]} Kh7 {[%emt 0:00:25]} 37. Qd8 {[%emt 0:02:49]} Kg6 {[%emt 0:01:14]} 38. Ke3 {[%emt 0:01:09]} Qe8 {[%emt 0:01:37]} 39. Qxe8+ {[%emt 0:00:58]} Bxe8 {[%emt 0:00:21]} 40. Ne6 {[%emt 0:00:22]} Bd7 {[%emt 0:00:37]} 41. Nd8 {[%emt 0:00:22]} Bc8 {[%emt 0:00:23]} 42. e6 {[%emt 0:00:33]} Bf6 {[%emt 0:00:40]} 43. e7 {[%emt 0:00:39]} Bd7 {[%emt 0:00:21]} 44. Nxb7 {[%emt 0:00:37]} Kf7 {[%emt 0:00:21]} 45. h3 {[%emt 0:01:50]} Ke8 {[%emt 0:00:40]} 46. Nd8 {[%emt 0:00:39]} Bh4 {[%emt 0:01:08]} 47. b5 {[%emt 0:01:47]} cxb5 {[%emt 0:00:21]} 48. c6 {[%emt 0:00:21]} Bc8 {[%emt 0:00:21]} 49. Kd4 {[%emt 0:00:26]} Bxe7 {[%emt 0:00:27]} 50. Bxe7 {[%emt 0:00:48]} Kxe7 {[%emt 0:00:21]} 51. Nb7 {[%emt 0:00:36]} Ke6 {[%emt 0:00:21]} 52. Kc5 {[%emt 0:00:34]} b4 {[%emt 0:00:34]} 53. Kxb4 {[%emt 0:00:30]} d4 {[%emt 0:00:21]} 54. Kc4 {[%emt 0:01:19]} d3 {[%emt 0:00:20]} 55. Kxd3 {[%emt 0:00:24]} Kd5 {[%emt 0:00:21]} 56. Nd8 {[%emt 0:00:24]} Kd6 {[%emt 0:00:26]} 57. Kd4 {[%emt 0:00:34]} Kc7 {[%emt 0:00:20]} 58. Nf7 {[%emt 0:00:21]} Kxc6 {[%emt 0:00:21]} 59. Nxh6 {[%emt 0:01:26]} Kb5 60. Nf7 {[%emt 0:00:00]} Kxa5 {[%emt 0:01:08]} 61. Nd6 {[%emt 0:00:00]} Bd7 {[%emt 0:00:21]} 62. h4 {[%emt 0:00:23]} Kb4 {[%emt 0:01:10]} 63. h5 {[%emt 0:00:25]} Be6 {[%emt 0:00:22]} 64. h6 {[%emt 0:00:25]} Bg8 {[%emt 0:00:20]} 65. Nb7 {[%emt 0:00:55]} Kb5 {[%emt 0:01:09]} 66. Ke5 {[%emt 0:00:22]} Kc6 {[%emt 0:01:57] Ke4 Kd5+} 1-0

[Event "EWIRCC 2019"]
[Site "Monte-Carlo"]
[Date "2019.11.30"]
[Round "3.5"]
[White "Rogule, Laura"]
[Black "Paehtz, Elisabeth"]
[Result "1-0"]
[ECO "A10"]
[WhiteElo "2293"]
[BlackElo "2484"]
[Annotator "ChessBase"]
[PlyCount "72"]
[EventDate "2019.11.28"]
[EventType "swiss"]
[EventCountry "MNC"]
[SourceTitle "playchess.com"]
[Source "ChessBase"]
[SourceQuality "1"]
[TimeControl "5400+30"]

1. c4 {[%emt 1:15:12]} b6 {[%emt 1:15:11]} 2. Nc3 {[%emt 0:01:08]} Bb7 {[%emt 0:00:21]} 3. e4 {[%emt 0:00:26]} e6 {[%emt 0:00:21]} 4. Nf3 {[%emt 0:00:27]} Bb4 {[%emt 0:00:22]} 5. Qb3 {[%emt 0:00:30]} a5 {[%emt 0:01:12]} 6. a3 {[%emt 0:01:25]} Bxc3 {[%emt 0:00:37]} 7. Qxc3 {[%emt 0:00:23]} Bxe4 {[%emt 0:00:33]} 8. Qxg7 {[%emt 0:00:23]} Qf6 {[%emt 0:00:21]} 9. Qxf6 {[%emt 0:00:25]} Nxf6 {[%emt 0:00:21]} 10. Be2 {[%emt 0:01:34]} Rg8 {[%emt 0:00:25]} 11. d3 {[%emt 0:01:25]} Bb7 {[%emt 0:00:52]} 12. Bg5 {[%emt 0:04:42]} Ke7 {[%emt 0:06:14]} 13. h4 {[%emt 0:04:13]} Na6 {[%emt 0:00:40]} 14. d4 {[%emt 0:01:33]} c5 {[%emt 0:01:28]} 15. d5 {[%emt 0:01:12]} exd5 {[%emt 0:00:21]} 16. cxd5 {[%emt 0:00:34]} Bxd5 {[%emt 0:00:29]} 17. Ne5 {[%emt 0:00:53]} Be6 {[%emt 0:00:37]} 18. Rd1 {[%emt 0:01:08]} Nc7 {[%emt 0:01:59]} 19. Nxd7 {[%emt 0:01:21]} Bxd7 {[%emt 0:00:21]} 20. Bxf6+ {[%emt 0:00:27]} Kxf6 {[%emt 0:00:21]} 21. Rxd7 {[%emt 0:00:21]} Ne6 {[%emt 0:00:21]} 22. Rh3 {[%emt 0:00:39]} Nd4 {[%emt 0:04:06]} 23. Bc4 {[%emt 0:00:39]} Rge8+ {[%emt 0:03:33]} 24. Kf1 {[%emt 0:00:28]} Re7 {[%emt 0:00:24]} 25. Rd6+ {[%emt 0:00:29]} Kg7 {[%emt 0:00:21]} 26. Rxb6 {[%emt 0:00:40]} Rae8 {[%emt 0:00:21]} 27. Rg3+ {[%emt 0:00:30]} Kf8 {[%emt 0:00:24]} 28. Kg1 {[%emt 0:00:25]} Re1+ {[%emt 0:00:58]} 29. Kh2 {[%emt 0:00:21]} R8e4 {[%emt 0:00:22]} 30. Rb8+ {[%emt 0:00:30]} Ke7 {[%emt 0:00:22]} 31. Rb7+ {[%emt 0:00:39]} Kd6 {[%emt 0:00:22]} 32. Rh3 {[%emt 0:00:38]} Nf3+ {[%emt 0:00:42]} 33. Rxf3 {[%emt 0:00:29]} Rxh4+ {[%emt 0:00:22]} 34. Rh3 {[%emt 0:00:30]} Rxc4 {[%emt 0:00:22]} 35. Rxh7 {[%emt 0:00:29]} f6 {[%emt 0:01:06]} 36. Rb6+ {[%emt 0:00:30]} Kd5 {[%emt 0:00:48]} 1-0

[Event "EWIRCC 2019"]
[Site "Monte-Carlo"]
[Date "2019.11.30"]
[Round "3.6"]
[White "Girya, Olga"]
[Black "Buksa, Nataliya"]
[Result "1-0"]
[ECO "D35"]
[WhiteElo "2476"]
[BlackElo "2410"]
[Annotator "ChessBase"]
[PlyCount "113"]
[EventDate "2019.11.28"]
[EventType "swiss"]
[EventCountry "MNC"]
[SourceTitle "playchess.com"]
[Source "ChessBase"]
[SourceQuality "1"]
[TimeControl "5400+30"]

1. d4 {[%emt 1:15:11]} d5 {[%emt 1:15:11]} 2. c4 {[%emt 0:00:21]} e6 {[%emt 0:00:21]} 3. Nc3 {[%emt 0:00:22]} Nf6 {[%emt 0:00:22]} 4. Nf3 {[%emt 0:00:26]} Nbd7 {[%emt 0:00:22]} 5. cxd5 {[%emt 0:00:31]} exd5 {[%emt 0:00:22]} 6. Bg5 {[%emt 0:00:21]} c6 {[%emt 0:00:22]} 7. e3 {[%emt 0:00:22]} h6 {[%emt 0:00:27]} 8. Bf4 {[%emt 0:00:31]} g5 {[%emt 0:00:22]} 9. Bg3 {[%emt 0:00:35]} Nh5 {[%emt 0:00:22]} 10. Bd3 {[%emt 0:00:26]} Nxg3 {[%emt 0:00:36]} 11. hxg3 {[%emt 0:00:21]} Bg7 {[%emt 0:00:22]} 12. Qc2 {[%emt 0:00:49]} Nb6 {[%emt 0:00:25]} 13. O-O-O {[%emt 0:01:28]} Qe7 {[%emt 0:00:21]} 14. Kb1 {[%emt 0:00:33]} Be6 {[%emt 0:00:22]} 15. Rc1 {[%emt 0:00:49]} O-O-O {[%emt 0:03:02]} 16. Na4 {[%emt 0:01:18]} Nxa4 {[%emt 0:00:22]} 17. Qxa4 {[%emt 0:00:21]} Kb8 {[%emt 0:00:21]} 18. Rc3 {[%emt 0:01:01]} Rc8 {[%emt 0:00:48]} 19. Rhc1 {[%emt 0:01:38]} Qd7 {[%emt 0:01:20]} 20. Nd2 {[%emt 0:02:13]} Rc7 {[%emt 0:01:26]} 21. Nb3 {[%emt 0:01:03]} b6 {[%emt 0:02:32]} 22. Rxc6 {[%emt 0:03:29]} Rhc8 {[%emt 0:02:41]} 23. Bb5 {[%emt 0:00:31]} Rxc6 {[%emt 0:02:33]} 24. Bxc6 {[%emt 0:00:53]} Qd6 {[%emt 0:03:33]} 25. Qb5 {[%emt 0:01:42]} Rc7 {[%emt 0:00:44]} 26. a4 {[%emt 0:01:11]} Bf8 {[%emt 0:00:50]} 27. a5 {[%emt 0:01:41]} Qb4 {[%emt 0:00:21]} 28. Qxb4 {[%emt 0:01:23]} Bxb4 {[%emt 0:00:21]} 29. a6 {[%emt 0:00:43]} Bf5+ {[%emt 0:00:21]} 30. Ka2 {[%emt 0:00:28]} Be6 {[%emt 0:00:21]} 31. Bb5 {[%emt 0:01:50]} Bf5 {[%emt 0:00:52]} 32. Bc6 {[%emt 0:01:01]} Be6 {[%emt 0:00:22]} 33. f3 {[%emt 0:00:27]} f5 {[%emt 0:00:25]} 34. Kb1 {[%emt 0:00:26]} Kc8 {[%emt 0:01:13]} 35. Bb7+ {[%emt 0:00:26]} Kd8 {[%emt 0:00:21]} 36. Rh1 {[%emt 0:00:55]} Rh7 {[%emt 0:01:20]} 37. Nc1 {[%emt 0:00:20]} Bd6 {[%emt 0:00:37]} 38. g4 {[%emt 0:00:31]} fxg4 {[%emt 0:01:05]} 39. fxg4 {[%emt 0:00:21]} Ke7 {[%emt 0:00:21]} 40. Nd3 {[%emt 0:00:28]} Bf7 {[%emt 0:00:21]} 41. Ka2 {[%emt 0:00:36]} Bg6 {[%emt 0:00:41]} 42. Ne5 {[%emt 0:00:33]} Bxe5 {[%emt 0:00:32]} 43. dxe5 {[%emt 0:00:21]} Ke6 {[%emt 0:00:21]} 44. Rc1 {[%emt 0:00:35]} Kxe5 {[%emt 0:00:42]} 45. Rc8 {[%emt 0:00:21]} Ke4 {[%emt 0:00:45]} 46. Ra8 {[%emt 0:00:49]} Bf7 {[%emt 0:00:22]} 47. Ka3 {[%emt 0:00:27]} Kxe3 {[%emt 0:00:22]} 48. Rxa7 {[%emt 0:00:23]} Be6 {[%emt 0:01:11]} 49. Ra8 {[%emt 0:00:25]} Bxg4 {[%emt 0:00:32]} 50. Re8+ {[%emt 0:00:24]} Kd4 {[%emt 0:00:22]} 51. a7 {[%emt 0:00:28]} Rxb7 {[%emt 0:00:30]} 52. a8=Q {[%emt 0:00:22]} Rc7 {[%emt 0:00:21]} 53. Qb8 {[%emt 0:00:30]} Rc6 {[%emt 0:00:39]} 54. Qe5+ {[%emt 0:00:23]} Kc5 {[%emt 0:00:23]} 55. Qc3+ {[%emt 0:00:30]} Kd6 {[%emt 0:00:22]} 56. Qb4+ {[%emt 0:00:29]} Rc5 {[%emt 0:00:25]} 57. Qxg4 {[%emt 0:00:36]} 1-0

[Event "EWIRCC 2019"]
[Site "Monte-Carlo"]
[Date "2019.11.30"]
[Round "3.7"]
[White "Ovod, Evgenija"]
[Black "Daulyte-Cornette, Deimante"]
[Result "0-1"]
[ECO "B03"]
[WhiteElo "2347"]
[BlackElo "2405"]
[Annotator "NA"]
[PlyCount "78"]
[EventDate "2019.11.28"]
[EventType "swiss"]
[EventCountry "MNC"]
[SourceTitle "playchess.com"]
[Source "ChessBase"]
[SourceQuality "1"]
[TimeControl "5400+30"]

1. e4 {[%emt 1:15:11]} Nf6 {[%emt 1:15:14]} 2. e5 {[%emt 0:00:22]} Nd5 {[%emt 0:00:22]} 3. d4 {[%emt 0:00:22]} d6 {[%emt 0:00:22]} 4. c4 {[%emt 0:00:26]} Nb6 {[%emt 0:00:22]} 5. exd6 {[%emt 0:00:23]} cxd6 {[%emt 0:00:22]} 6. Nc3 {[%emt 0:00:29]} g6 {[%emt 0:00:23]} 7. Be3 {[%emt 0:00:23]} Bg7 {[%emt 0:00:23]} 8. Rc1 {[%emt 0:00:27]} O-O {[%emt 0:00:24]} 9. Be2 {[%emt 0:00:39]} d5 {[%emt 0:00:28]} 10. b3 {[%emt 0:02:02]} Bf5 {[%emt 0:02:09]} 11. c5 {[%emt 0:01:20]} Nc8 {[%emt 0:00:23]} 12. Bf3 {[%emt 0:01:20]} e5 {[%emt 0:01:23]} 13. dxe5 {[%emt 0:01:29]} Nc6 {[%emt 0:02:36]} 14. Nxd5 {[%emt 0:05:44]} Nxe5 {[%emt 0:00:41]} 15. Nf4 {[%emt 0:02:48]} g5 {[%emt 0:02:52]} 16. Qxd8 {[%emt 0:02:28]} Rxd8 {[%emt 0:00:22]} 17. Bxb7 {[%emt 0:00:30]} gxf4 {[%emt 0:00:55]} 18. Bxa8 {[%emt 0:00:36]} fxe3 {[%emt 0:00:41]} 19. Nf3 {[%emt 0:00:25]} Nd3+ {[%emt 0:01:10]} 20. Ke2 {[%emt 0:00:21]} Nxc1+ {[%emt 0:03:25]} 21. Rxc1 {[%emt 0:00:21]} Bd3+ {[%emt 0:00:26]} 22. Ke1 {[%emt 0:00:23]} Bb2 {[%emt 0:00:46]} 23. Rc4 {[%emt 0:00:23]} Bxc4 {[%emt 0:00:39]} 24. bxc4 {[%emt 0:00:20]} exf2+ 25. Kxf2 {[%emt 0:00:21]} Bd4+ {[%emt 0:01:05]} 26. Nxd4 {[%emt 0:00:30]} Rxd4 {[%emt 0:00:21]} 27. Bd5 {[%emt 0:00:43]} Rd2+ {[%emt 0:01:01]} 28. Ke3 {[%emt 0:00:22]} Rxa2 {[%emt 0:00:22]} 29. c6 {[%emt 0:00:31]} Kf8 {[%emt 0:00:43]} 30. Kd4 {[%emt 0:00:53]} Ke7 {[%emt 0:00:29]} 31. h4 {[%emt 0:01:05]} f6 {[%emt 0:00:38]} 32. h5 {[%emt 0:00:27]} h6 {[%emt 0:00:24]} 33. g4 {[%emt 0:00:31]} Rf2 {[%emt 0:01:07]} 34. Ke3 {[%emt 0:00:48]} Rf1 {[%emt 0:00:31]} 35. c5 {[%emt 0:00:41]} a5 {[%emt 0:00:36]} 36. Bc4 {[%emt 0:01:06]} Rc1 {[%emt 0:00:41]} 37. Kd4 {[%emt 0:00:44]} a4 {[%emt 0:00:51]} 38. c7 {[%emt 0:00:23]} a3 {[%emt 0:00:32]} 39. Bg8 {[%emt 0:00:30]} Kd7 {[%emt 0:00:37]} 0-1